[Event "Czech Championship U20 Open 2023"]
[Site "Jaromerice nad Rokytnou"]
[Date "2023.03.12"]
[Round "3.2"]
[White "Ocelak, Jakub"]
[Black "Jares, Michal"]
[Result "1/2-1/2"]
[ECO "B76"]
[WhiteElo "2190"]
[BlackElo "2177"]
[Annotator "TA"]
[PlyCount "97"]
[EventDate "2023.03.10"]
[EventType "tourn"]
[EventCountry "CZE"]
[SourceTitle "playchess.com"]
[Source "ChessBase"]
[SourceQuality "1"]
[TimeControl "40/5400+30:1800+30"]

{[%evp 18,97,28,0,0,0,40,26,18,49,155,60,125,140,177,180,184,174,189,186,186,191,196,193,175,186,192,137,164,166,156,166,274,258,283,275,280,166,198,163,270,264,269,252,353,329,335,324,512,536,568,587,498,212,208,223,315,315,315,315,310,310,296,250,367,311,319,318,439,424,432,432,382,297,380,279,262,251,210,157,173,72]} 1. e4 {[%emt 0:00:05] Edouard,Romain} c5 {[%emt 0:00:02]} 2. Nf3 {[%emt 0:00:09]} d6 {[%emt 0:00:08]} 3. d4 {[%emt 0:00:05]} cxd4 {[%emt 0:00:03]} 4. Nxd4 {[%emt 0:00:06]} Nf6 {[%emt 0:00:09]} 5. Nc3 {[%emt 0:00:04]} g6 {[%emt 0:00:08]} 6. Be3 {[%emt 0:00:03]} Bg7 {[%emt 0:00:07]} 7. f3 {[%emt 0:00:05]} O-O {[%emt 0:00:10]} 8. Qd2 {[%emt 0:00:03]} Nc6 {[%emt 0:00:15]} 9. g4 {[%emt 0:00:04]} Be6 {[%emt 0:00:09]} 10. h4 {[%emt 0:00:06]} d5 {[%emt 0:16:08] B76: Sicilian Dragon: Yugoslav Attack, 9 g4 and 9 0-0-0.} 11. e5 {[%emt 0:00:05] now supersedes 11.0-0-0.} Nxe5 {[%emt 0:14:04][%cal Oe6g4]} 12. O-O-O $1 {[%emt 0:00:03] [#]} Rc8 $146 {[%emt 0:05:46][%cal Oe6g4] White has an edge.} ({Predecessor:} 12... Qa5 13. Be2 Rfc8 14. h5 Rxc3 15. Qxc3 Qxa2 16. hxg6 hxg6 17. Nxe6 fxe6 18. Qxe5 Qa1+ 19. Kd2 Qa5+ 20. Kc1 Qa1+ 21. Kd2 Qa5+ 22. Kc1 Qa1+ 23. Kd2 {½-½ Bauer,C (2618)-Edouard,R (2634) FRA-ch 90th Saint Quentin 2015 (9)}) 13. h5 {[%emt 0:04:16]} Qa5 {[%emt 0:08:16]} (13... Bd7 $1 $14) 14. a3 {[%emt 0:02:24]} (14. hxg6 $16 Nxf3 15. Nxf3 fxg6 16. Ng5 Rxc3 17. Qxc3 (17. Nxe6 $2 Qxa2 18. Qd4 Qa1+ 19. Kd2 Qxb2 $19) 17... Qxa2 18. Qa3 (18. Nxe6 $2 Qa1+ 19. Kd2 Ne4+ {[%mdl 64] Discovered Attack, Double Attack} 20. Ke2 Ng3+ 21. Kd2 Bxc3+ 22. Kxc3 Qxd1 $19) 18... Qxa3 19. bxa3 Bxg4 20. Bh3 Bxd1 21. Be6+ (21. Kxd1 Bh6 $14) 21... Kh8 22. Kxd1 (22. Rxd1 h5 $16)) 14... Nxf3 {[%emt 0:13:12]} 15. Nxf3 $16 {[%emt 0:19:29]} Nxg4 {[%emt 0:02:09][%cal Rg7c3]} 16. Bd4 {[%emt 0:30:48] Bxg7 would be deadly.} (16. Nxd5 $2 Qxd5 17. Qxd5 Bxd5 18. Rxd5 Nxe3 $19) 16... Bh6 {[%emt 0:02:53]} 17. Ng5 {[%emt 0:00:11]} f6 {[%emt 0:03:44] [#]} 18. Nxe6 {[%emt 0:01:25][%cal Od2h6] aiming for Qxh6! Excellent horsemanship.} Bxd2+ {[%emt 0:00:03]} 19. Rxd2 {[%emt 0:00:07]} Rc6 {[%emt 0:11:16]} 20. Nxf8 {[%emt 0:07:06]} Kxf8 {[%emt 0:00:02]} 21. hxg6 {[%emt 0:02:39]} hxg6 {[%emt 0:00:18]} 22. Be2 {[%emt 0:06:33]} ({White should try} 22. Bh3 $18 e5 23. Bxg4 exd4 24. Ne2 (24. Rxd4 Rxc3 25. bxc3 Qxc3 $11)) 22... e5 {[%emt 0:02:08]} 23. Bxg4 {[%emt 0:03:36]} exd4 {[%emt 0:00:04] [#]} 24. Ne2 {[%emt 0:00:51] White is more active.} (24. Rxd4 Rxc3 25. bxc3 Qxc3 $11) 24... d3 {[%emt 0:03:37]} (24... Rb6 {was worth a try.}) 25. Rxd3 $18 {[%emt 0:01:14]} (25. Nd4 $6 dxc2 26. Nxc6 bxc6 27. Rxc2 (27. Kxc2 $2 Qa4+ 28. Kc1 Qxg4 $19) 27... Qc7 $18) 25... f5 {[%emt 0:07:34]} 26. Bf3 {[%emt 0:00:39]} Re6 {[%emt 0:05:10]} 27. Rhd1 {[%emt 0:07:23]} (27. Bxd5 $2 Rxe2 28. Rhd1 Qc5 $19) (27. Rxd5 $142 Qc7 28. Rhd1) 27... Qc5 {[%emt 0:01:41]} 28. Nd4 {[%emt 0:03:24]} (28. Rxd5 Qe3+ 29. R5d2 Qxf3 $11) 28... Rb6 {[%emt 0:00:44]} (28... Re5 $142 29. Kb1 a6) 29. Re1 {[%emt 0:01:21] And now Ne6+ would win.} Kf7 {[%emt 0:03:03] Prevents Ne6} 30. Kb1 {[%emt 0:05:38]} Qd6 {[%emt 0:00:41]} (30... Qc4 {is a better defense.} 31. Re5 (31. Nxf5 Qb5 $14) 31... Rd6) 31. Nb3 {[%emt 0:00:38]} Qf4 {[%emt 0:00:35]} 32. Nc5 {[%emt 0:01:28]} Qh4 {[%emt 0:00:53]} (32... g5 {keeps fighting.} 33. Bh5+ Kg7 34. Ne6+ (34. Rxd5 Qh4 $18) 34... Rxe6 35. Rxe6 g4) 33. Rh1 {[%emt 0:01:44]} Qf2 {[%emt 0:00:34]} 34. Bxd5+ {[%emt 0:00:26]} Kg7 {[%emt 0:00:27]} 35. Na4 {[%emt 0:01:09]} (35. Nxb7 g5 36. Nd8 Rd6 $18) (35. Nd7 $142 {Black must now prevent Rdh3.} Rd6 36. Rdh3 (36. Bxb7 Rxd3 37. cxd3 Qd4 $17) 36... Rxd7 37. Rh7+ {[%mdl 64] Skewer} Kf6 38. Rxd7) 35... Rd6 {[%emt 0:00:30]} 36. Nc3 {[%emt 0:00:06]} (36. Bxb7 Rxd3 37. cxd3 g5 $11) 36... a6 {[%emt 0:00:50]} (36... Qc5 {might work better.} 37. Re1 (37. Bxb7 Rxd3 38. cxd3 g5 $16) 37... Rd7) 37. Rdh3 {[%emt 0:00:17]} ({Inferior is} 37. Bxb7 Rxd3 38. cxd3 g5 $14) 37... Qd4 {[%emt 0:00:42] Against Ne4} 38. Rh7+ {[%emt 0:01:37]} Kf6 {[%emt 0:00:13]} 39. Rf7+ {[%emt 0:00:45]} Kg5 {[%emt 0:00:26]} 40. Bb3 {[%emt 0:00:49]} ({Less strong is} 40. Rxb7 Rxd5 41. Nxd5 Qxd5 42. Rg1+ Kf4 $16) 40... Qg4 {[%emt 0:01:02]} (40... b5 $142 41. Re7 Qb6) 41. Ka2 {[%emt 0:06:01]} b5 {[%emt 0:04:41]} 42. Re7 {[%emt 0:01:15]} a5 {[%emt 0:10:25]} 43. Nxb5 {[%emt 0:06:05]} Rd1 {[%emt 0:00:42]} 44. Rxd1 {[%emt 0:02:04]} Qxd1 {[%emt 0:00:02]} 45. Nc3 {[%emt 0:00:18]} Qd4 {[%emt 0:02:17]} 46. Bd5 {[%emt 0:00:47]} Kh6 {[%emt 0:01:46]} 47. Rc7 {[%emt 0:06:55]} g5 {[%emt 0:01:17]} 48. Rc6+ {[%emt 0:01:16]} Kg7 {[%emt 0:00:37] [#]} 49. b4 {[%emt 0:02:45] An interesting game.   Weighted Error Value: White=0.35/Black=0.40} 1/2-1/2

[Event "Czech Championship U20 Open 2023"]
[Site "Jaromerice nad Rokytnou"]
[Date "2023.03.12"]
[Round "3.3"]
[White "Hrbek, Stepan"]
[Black "Svanda, Ondrej"]
[Result "1/2-1/2"]
[ECO "A04"]
[WhiteElo "2340"]
[BlackElo "2366"]
[Annotator "TA"]
[PlyCount "97"]
[EventDate "2023.03.10"]
[EventType "tourn"]
[EventCountry "CZE"]
[SourceTitle "playchess.com"]
[Source "ChessBase"]
[SourceQuality "1"]
[TimeControl "40/5400+30:1800+30"]

{[%evp 12,96,32,34,26,24,22,32,23,0,0,-29,18,26,24,0,27,0,0,0,0,0,0,0,0,0,0,0,0,-2,0,0,0,0,0,0,0,7,10,0,0,0,0,0,0,0,0,0,0,0,0,0,0,0,0,0,0,0,0,0,0,0,0,0,0,0,0,0,0,0,0,0,0,0,0,0,0,0,0,0,0,0,0,0,0,0,0]} 1. Nf3 {[%emt 0:00:41]} e6 {[%emt 0:01:23]} 2. g3 {[%emt 0:01:47]} d5 {[%emt 0:00:07]} 3. Bg2 {[%emt 0:00:06]} Nf6 {[%emt 0:00:04]} 4. O-O {[%emt 0:00:07]} Be7 {[%emt 0:00:01]} 5. c4 {[%emt 0:02:01]} O-O {[%emt 0:00:22]} 6. b3 {[%emt 0:00:07]} a5 {[%emt 0:02:02]} 7. Nc3 {[%emt 0:06:59]} Nbd7 {[%emt 0:04:35] A14: English Opening: 1...e6 with b3 by White.} 8. d4 {[%emt 0:00:41]} c6 {[%emt 0:01:01]} 9. Qc2 {[%emt 0:09:06]} b6 {[%emt 0:03:53] White is slightly better.} 10. Rd1 {[%emt 0:18:22]} Ba6 {[%emt 0:00:44]} 11. Ne5 {[%emt 0:00:05] [#]} Qc7 $146 {[%emt 0:06:55]} (11... Nxe5 {was preferrable.} 12. dxe5 Ng4) ({Predecessor:} 11... Rc8 12. e4 dxc4 13. Nxc4 b5 14. Ne3 Qb6 15. Bf3 Rfd8 16. Bb2 Bb7 17. Rac1 Qa7 {0-1 Vragoteris,A (2261)-Halkias,S (2567) Isthmia op 3rd 2013 (3)}) 12. Nxd7 {[%emt 0:02:46]} Nxd7 {[%emt 0:05:53]} 13. Bf4 {[%emt 0:02:04]} Bd6 {[%emt 0:03:36]} 14. cxd5 {[%emt 0:02:06]} cxd5 {[%emt 0:01:35] The position is equal.} 15. Bxd6 {[%emt 0:00:13]} Qxd6 {[%emt 0:00:01]} 16. e4 {[%emt 0:00:22][%cal Re4d5]} Rac8 {[%emt 0:01:49]} 17. exd5 {[%emt 0:07:58]} exd5 {[%emt 0:02:10]} 18. Rac1 {[%emt 0:02:15]} Nf6 {[%emt 0:00:10]} 19. Qf5 {[%emt 0:00:23][%cal Rc3d5]} Rfd8 {[%emt 0:13:17]} 20. Na4 {[%emt 0:10:04]} Rxc1 {[%emt 0:07:12]} 21. Rxc1 {[%emt 0:00:10]} h6 {[%emt 0:00:01]} 22. Bf1 {[%emt 0:12:10]} Qa3 {[%emt 0:09:18]} 23. Rc2 {[%emt 0:02:41]} Bxf1 {[%emt 0:00:02]} 24. Kxf1 {[%emt 0:00:49]} Qb4 {[%emt 0:00:02]} 25. Rc8 {[%emt 0:00:42]} Rxc8 {[%emt 0:01:31]} 26. Qxc8+ $11 {[%emt 0:00:08][%mdl 4096] Endgame KQN-KQN} Kh7 {[%emt 0:00:01]} 27. Qf5+ {[%emt 0:00:10]} Kg8 {[%emt 0:00:02]} 28. Qc8+ {[%emt 0:00:19]} Kh7 {[%emt 0:00:00]} 29. Qc3 {[%emt 0:07:31]} Qxc3 {[%emt 0:00:31]} 30. Nxc3 {[%emt 0:00:06][%cal Og3g4] KN-KN} Kg6 {[%emt 0:00:03]} 31. Ke2 {[%emt 0:00:46]} Kf5 {[%emt 0:00:02]} 32. f3 {[%emt 0:00:20][%cal Bf2f3,Bf3f4,Bf4g5][%mdl 32]} Ke6 {[%emt 0:03:19]} 33. Ke3 {[%emt 0:06:53]} g5 {[%emt 0:04:27]} 34. g4 {[%emt 0:00:34]} Kd6 {[%emt 0:03:36]} 35. h3 {[%emt 0:01:37]} h5 {[%emt 0:01:15]} 36. f4 {[%emt 0:01:51]} hxg4 {[%emt 0:04:30]} 37. hxg4 {[%emt 0:00:05]} (37. fxg5 $2 {perishes.} gxh3 38. Nb5+ Kc6 39. Na7+ Kb7 $19) 37... Nxg4+ {[%emt 0:05:02]} 38. Kf3 {[%emt 0:00:06]} Nh6 {[%emt 0:09:22] White must now prevent ...g4+.} ({Resist} 38... Nh2+ 39. Kg3 Nf1+ 40. Kf2 $16) 39. fxg5 {[%emt 0:00:07]} Nf5 {[%emt 0:00:02]} 40. Ne2 {[%emt 0:02:59]} Ke6 {[%emt 0:02:28]} 41. a4 {[%emt 0:06:44]} Ne7 {[%emt 0:05:47]} 42. Kf4 {[%emt 0:06:22]} f6 {[%emt 0:01:56]} 43. gxf6 {[%emt 0:03:17]} Kxf6 {[%emt 0:00:03]} 44. Nc3 {[%emt 0:00:08]} Ke6 {[%emt 0:00:29]} 45. Kg5 {[%emt 0:00:16]} Nc6 {[%emt 0:00:38]} 46. Nb5 {[%emt 0:00:28]} Nb4 {[%emt 0:00:22]} 47. Nc7+ {[%emt 0:00:29]} Kd6 {[%emt 0:00:07]} (47... Kd7 $5 48. Nb5 $8 Ke6 $11) 48. Nb5+ {[%emt 0:00:08]} Ke6 {[%emt 0:01:19]} 49. Nc7+ {[%emt 0:00:09] An even fight not without its subleties.   Weighted Error Value: White=0.03 (flawless) /Black=0.03 (flawless)} 1/2-1/2

[Event "Czech Championship U20 Open 2023"]
[Site "Jaromerice nad Rokytnou"]
[Date "2023.03.12"]
[Round "3.4"]
[White "Jun, Rudolf"]
[Black "Smolik, Jachym"]
[Result "0-1"]
[ECO "B13"]
[WhiteElo "2152"]
[BlackElo "2297"]
[Annotator "TA"]
[PlyCount "146"]
[EventDate "2023.03.10"]
[EventType "tourn"]
[EventCountry "CZE"]
[SourceTitle "playchess.com"]
[Source "ChessBase"]
[SourceQuality "1"]
[TimeControl "40/5400+30:1800+30"]

{[%evp 9,146,8,25,7,18,4,5,0,2,0,5,6,7,0,0,0,16,15,8,8,13,0,-4,-31,-32,-32,-32,-32,-25,-31,0,-30,-6,-45,-43,-107,-107,-110,-107,-106,-107,-107,-100,-100,-100,-100,-60,-63,-61,-67,-62,-64,-64,-77,-75,-62,-50,-83,-57,-49,-29,-57,-4,0,0,0,0,-90,-85,-83,-83,-95,-8,-70,-18,-143,-143,-148,-153,-151,-143,-143,-143,-107,-43,-43,-43,-43,-43,-43,-43,-72,-68,-236,-204,-208,-190,-1195,-1194,-1083,-1068,-1068,-520,-502,-466,-4798,-404,-12664,-12063,-12664,-4590,-29966,-29964,-29972,-29973,-29973,-29974,-29974,-29975,-29975,-29976,-29976,-29977,-29977,-29978,-29977,-29978,-29978,-29979,-29979,-29979,-29984,-29985,-29985,-29986,-29987,-29988,-29988,0]} 1. e4 {[%emt 0:00:03]} c6 {[%emt 0:00:01]} 2. d4 {[%emt 0:00:50]} d5 {[%emt 0:00:05]} 3. exd5 {[%emt 0:01:44]} cxd5 {[%emt 0:00:07]} 4. Nf3 {[%emt 0:01:14]} Nc6 {[%emt 0:00:35]} 5. c3 {[%emt 0:02:12]} Qc7 {[%emt 0:05:22]} 6. g3 {[%emt 0:04:49] B13: Caro-Kann: Exchange Variation and Panov-Botvinnik Attack.} Bg4 {[%emt 0:11:28]} 7. Bg2 {[%emt 0:00:55]} e6 {[%emt 0:00:41]} 8. Bf4 {[%emt 0:02:08] The position is equal.} Bd6 {[%emt 0:00:49]} 9. Bxd6 {[%emt 0:01:27]} Qxd6 {[%emt 0:00:02]} 10. Nbd2 {[%emt 0:01:46]} Nf6 {[%emt 0:00:52] [#]} 11. Qe2 $146 {[%emt 0:03:49]} ({Predecessor:} 11. O-O O-O 12. Re1 Nd7 13. Re3 b5 14. h3 Bxf3 15. Qxf3 b4 16. Bf1 bxc3 17. bxc3 {0-1 Parrado,A (1554)-Ryjanova,J (2289) Oceania zt (Women) 2019 (3)}) 11... O-O {[%emt 0:08:59]} 12. h3 {[%emt 0:01:36]} Bxf3 {[%emt 0:03:30]} 13. Nxf3 {[%emt 0:00:27]} Qc7 {[%emt 0:08:08]} 14. O-O {[%emt 0:01:31]} Rab8 {[%emt 0:00:47]} 15. Ne1 {[%emt 0:07:16]} b5 {[%emt 0:13:12]} 16. b4 {[%emt 0:04:17]} Ne7 {[%emt 0:00:24]} 17. Rc1 {[%emt 0:01:30]} a5 {[%emt 0:01:36] Hoping for ...axb4.} 18. a3 {[%emt 0:11:54]} Nf5 {[%emt 0:00:19] White must now prevent ...Nxd4.} 19. Nd3 {[%emt 0:01:18]} Qc4 {[%emt 0:01:26]} 20. Rfd1 {[%emt 0:02:23]} (20. bxa5 Ra8 $17) 20... Rfc8 {[%emt 0:10:27]} 21. Bf1 {[%emt 0:07:09]} Qb3 {[%emt 0:11:19][%csl LRa3,LRc3]} 22. Qb2 {[%emt 0:21:45]} (22. Nc5 $15 Qxa3 23. g4) 22... Qxb2 $17 {[%emt 0:00:08]} 23. Nxb2 {[%emt 0:00:04]} axb4 {[%emt 0:05:36]} 24. axb4 {[%emt 0:01:30]} Ne4 {[%emt 0:00:10]} 25. Rd3 {[%emt 0:01:42]} Ra8 {[%emt 0:01:02] Black has more active pieces. The white rooks are badly placed.} 26. g4 {[%emt 0:00:58]} Nfd6 {[%emt 0:03:19]} 27. f3 {[%emt 0:01:54]} Nf6 {[%emt 0:00:06]} 28. Rd2 {[%emt 0:02:28]} Nd7 {[%emt 0:01:48][%cal Bf6d7,Bd7b6,Bb6a4][%mdl 32]} 29. Nd3 {[%emt 0:01:11]} Ra3 {[%emt 0:00:50]} 30. Nc5 {[%emt 0:00:50]} Nb6 {[%emt 0:00:02]} 31. Kf2 {[%emt 0:01:00]} Kf8 {[%emt 0:01:45]} 32. Bd3 {[%emt 0:02:56]} Ke7 {[%emt 0:02:34]} 33. f4 {[%emt 0:00:55][%cal Bf3f4,Bf4f5][%mdl 32]} Na4 {[%emt 0:04:03]} 34. Rdc2 {[%emt 0:02:56]} h5 {[%emt 0:01:45]} 35. f5 {[%emt 0:01:58]} hxg4 {[%emt 0:00:36]} (35... exf5 $1 $15 36. gxf5 Kf6) 36. hxg4 $11 {[%emt 0:00:29]} Rh8 {[%emt 0:01:23]} 37. fxe6 {[%emt 0:01:14]} Rh2+ {[%emt 0:01:09]} 38. Kg3 {[%emt 0:00:43]} (38. Ke1 $11 Rxc2 39. Rxc2) 38... Rxc2 $17 {[%emt 0:00:02]} 39. Rxc2 {[%emt 0:00:07]} fxe6 {[%emt 0:00:43]} 40. Re2 {[%emt 0:04:23]} Nxc5 {[%emt 0:01:25]} (40... Ne4+ $1 $17 41. Kf4 (41. Bxe4 Nxc3 42. Re3 Nxe4+ 43. Kf4 Rxe3 $17) (41. Nxe4 $2 dxe4 42. Bc2 Nxc3 $19) 41... g5+ 42. Ke3 Naxc3) 41. dxc5 {[%emt 0:06:59][%mdl 4096] Endgame KRB-KRN} (41. bxc5 $11 Nf7 42. Bxb5) 41... Nc4 $15 {[%emt 0:00:13]} 42. Rc2 {[%emt 0:01:13]} (42. Kf4 $11) 42... d4 $17 {[%emt 0:03:32][%cal Bd5d4,Bd4c3,Bc3c2][%mdl 32]} 43. Kf3 {[%emt 0:09:14] [#]} Ne3 $1 {[%emt 0:04:45]} 44. Rc1 {[%emt 0:06:19]} Nd5 {[%emt 0:00:15]} 45. Ke4 {[%emt 0:02:16]} (45. Bxb5 $2 {is the wrong capture.} Nxb4 46. Bc4 dxc3 $19) 45... dxc3 {[%emt 0:00:20]} ({Don't play} 45... Rxc3 $6 46. Rb1 $11) 46. Bxb5 {[%emt 0:00:56] [#]} Nxb4 {[%emt 0:03:34]} (46... Rb3 $1 $17 {[%cal Rb3b4]} 47. Kd3 Rxb4) 47. Kd4 $1 $15 {[%emt 0:02:27]} c2 {[%emt 0:00:47]} 48. Kc4 {[%emt 0:01:51] Repels Rb3} Nd5 {[%emt 0:01:14] ...Rg3 is the strong threat.} 49. Kd4 $1 {[%emt 0:00:45]} Ra5 {[%emt 0:09:38]} 50. Bc4 {[%emt 0:03:12]} Nb4 {[%emt 0:00:11] Strongly threatening ...Ra3.} 51. Kc3 $2 {[%emt 0:00:30] Loses the game.} ({White should play} 51. Bb3 $1 $15) 51... Nc6 $19 {[%emt 0:00:05]} 52. Rxc2 {[%emt 0:00:54]} Rxc5 {[%emt 0:00:02] aiming for ...Ne5.} 53. Re2 {[%emt 0:00:32]} (53. Kd2) 53... Ne5 {[%emt 0:00:22]} 54. Kd4 {[%emt 0:00:29]} Rxc4+ {[%emt 0:00:06]} 55. Kxe5 {[%emt 0:00:07]} Rxg4 {[%emt 0:00:04] KR-KR} 56. Ra2 {[%emt 0:00:23]} Rg5+ {[%emt 0:00:05]} 57. Ke4 {[%emt 0:00:25]} (57. Kf4 $142 Kf6 58. Ke4) 57... Kf6 {[%emt 0:01:08]} (57... Rf5 $142 58. Ra8 Kf7) 58. Rf2+ {[%emt 0:00:28]} (58. Kf3 $142) 58... Rf5 {[%emt 0:00:18]} 59. Ra2 {[%emt 0:00:05]} g5 {[%emt 0:02:37][%cal Bg7g5,Bg5g4,Bg4g3][%mdl 32] ( -> ...g4)} 60. Ra8 {[%emt 0:00:30]} g4 {[%emt 0:05:42] Black mates.} 61. Rg8 {[%emt 0:00:48]} Rg5 {[%emt 0:00:09]} 62. Rf8+ {[%emt 0:00:27]} Ke7 {[%emt 0:00:49]} 63. Rf2 {[%emt 0:00:27]} g3 {[%emt 0:00:23]} 64. Rg2 {[%emt 0:00:05]} Kf6 {[%emt 0:00:32]} 65. Kf4 {[%emt 0:00:04]} e5+ {[%emt 0:00:17][%cal Be6e5,Be5e4][%mdl 32]} 66. Ke4 {[%emt 0:00:13]} Rg4+ {[%emt 0:00:10]} 67. Ke3 {[%emt 0:00:08]} Kf5 {[%emt 0:00:38]} 68. Kf3 {[%emt 0:00:04]} e4+ {[%emt 0:00:41]} 69. Ke3 {[%emt 0:00:05]} Rg8 {[%emt 0:00:06]} 70. Rg1 {[%emt 0:00:06]} g2 {[%emt 0:00:09]} 71. Kf2 {[%emt 0:00:07]} Kf4 {[%emt 0:00:06]} 72. Rxg2 {[%emt 0:00:09]} Rxg2+ {[%emt 0:00:06]} 73. Kxg2 {[%emt 0:00:05]} Ke5 $2 {[%mdl 32768] Weighted Error Value: White=0.75/Black=0.19 (very precise) . Sensor Board Error (Ke4/e5)?} (73... Ke3 {mates} 74. Kf1 Kd2 75. Kg2 e3 76. Kf3 e2 77. Ke4 e1=Q+ 78. Kd5 Kc3 79. Kc6 Qe6+ 80. Kc7 Kc4 81. Kb8 Kc5 82. Kc7 Qe7+ 83. Kc8 Kb6 84. Kb8 Qf8#) 0-1

[Event "Czech Championship U20 Open 2023"]
[Site "Jaromerice nad Rokytnou"]
[Date "2023.03.12"]
[Round "3.5"]
[White "Kubiczek, Michal"]
[Black "Gnojek, Petr"]
[Result "0-1"]
[ECO "A80"]
[WhiteElo "2087"]
[BlackElo "2313"]
[Annotator "TA"]
[PlyCount "92"]
[EventDate "2023.03.10"]
[EventType "tourn"]
[EventCountry "CZE"]
[SourceTitle "playchess.com"]
[Source "ChessBase"]
[SourceQuality "1"]
[TimeControl "40/5400+30:1800+30"]

{[%evp 10,92,11,9,15,14,18,38,53,23,59,49,43,34,37,27,22,8,4,11,19,10,23,20,56,62,89,33,92,89,93,91,92,93,141,138,146,82,82,72,81,59,44,65,66,0,0,0,0,0,0,-84,-81,-80,-80,-80,-77,-80,-80,-133,-150,-241,-238,-244,-256,-245,-245,-268,-236,-202,-14,-795,-663,-943,-743,-1641,-1550,-29964,-7154,-29981,-29982,-29982,-29983,-29984,-29985]} 1. d4 {[%emt 0:04:41]} f5 {[%emt 0:00:13]} 2. Nc3 {[%emt 0:00:51]} Nf6 {[%emt 0:01:24]} 3. Bg5 {[%emt 0:00:22]} d5 {[%emt 0:00:24]} 4. Nf3 {[%emt 0:00:56]} e6 {[%emt 0:00:08]} 5. e3 {[%emt 0:00:16]} Be7 {[%emt 0:00:28]} 6. Bd3 {[%emt 0:00:28]} O-O {[%emt 0:00:12]} 7. O-O {[%emt 0:00:18]} c5 {[%emt 0:07:40]} 8. dxc5 {[%emt 0:00:12]} Bxc5 {[%emt 0:00:06] White is slightly better.} 9. Ne2 {[%emt 0:02:20]} Nc6 {[%emt 0:00:42]} 10. c4 $1 {[%emt 0:04:16]} Nb4 {[%emt 0:13:16]} 11. cxd5 {[%emt 0:01:39]} Nxd3 {[%emt 0:00:07]} 12. Qxd3 {[%emt 0:00:11]} Qxd5 {[%emt 0:00:05]} 13. Nf4 {[%emt 0:00:21]} Qxd3 {[%emt 0:01:27]} 14. Nxd3 {[%emt 0:00:08]} Bb6 {[%emt 0:17:08]} 15. Rfd1 {[%emt 0:11:49]} Ne4 {[%emt 0:08:09]} 16. Bf4 {[%emt 0:02:08]} a5 {[%emt 0:09:33]} 17. Rac1 {[%emt 0:16:21]} a4 {[%emt 0:01:05]} 18. Nd4 {[%emt 0:02:35]} (18. Bc7 $16 Ba7 19. Nf4) 18... Ra5 {[%emt 0:12:57]} ({Black should try} 18... Bxd4 $14 19. exd4 Nf6) 19. Bc7 $16 {[%emt 0:01:54]} Bxc7 {[%emt 0:00:06]} 20. Rxc7 {[%emt 0:00:10]} e5 {[%emt 0:08:01]} 21. Nf3 {[%emt 0:03:59]} Rd5 {[%emt 0:00:02]} (21... Rd8 $142) 22. Nfxe5 {[%emt 0:00:44]} Rfd8 {[%emt 0:03:02][%cal Oe4c5]} 23. Kf1 {[%emt 0:01:59]} (23. Rdc1 $142 Be6 24. f3 (24. Rxb7 Nc5 $11)) 23... b6 {[%emt 0:04:03]} 24. Nc6 {[%emt 0:02:43] A dynamic duo of knights.} Ba6 {[%emt 0:00:17]} 25. Ne7+ {[%emt 0:06:51]} Kf8 {[%emt 0:00:04]} 26. Nxd5 {[%emt 0:00:07]} Rxd5 {[%emt 0:00:03]} 27. Ke2 {[%emt 0:01:11]} (27. Ke1 $14 Rxd3 28. Rxd3 Bxd3 29. f3) 27... Nc5 $1 $40 {[%emt 0:00:05][%mdl 128] Black attacks.} 28. Rxc5 {[%emt 0:00:47]} bxc5 {[%emt 0:00:04][%mdl 4096] Endgame KRB-KRN} 29. f3 {[%emt 0:00:34]} Rd6 {[%emt 0:00:48]} 30. e4 {[%emt 0:03:44]} (30. h4 $11) 30... f4 $17 {[%emt 0:00:19][%mdl 1024] Black has strong compensation.} 31. b3 {[%emt 0:02:36] [#]} a3 $1 {[%emt 0:00:27]} 32. Rd2 {[%emt 0:01:29]} Ke7 {[%emt 0:01:23] Black is much more active.} 33. Rd1 {[%emt 0:01:41]} g5 {[%emt 0:03:45]} 34. Rd2 {[%emt 0:02:47]} ({White should play} 34. g4) 34... h5 {[%emt 0:00:12][%cal Bh7h5,Bh5h4][%mdl 32]} 35. h3 {[%emt 0:16:43]} (35. Rd1 $17) 35... c4 {[%emt 0:04:21]} 36. bxc4 {[%emt 0:00:13]} Bxc4 {[%emt 0:00:03]} 37. Rd1 {[%emt 0:00:20]} h4 {[%emt 0:00:42]} (37... Bxa2 38. Ra1 Bc4 39. Rxa3 $11) 38. Rd2 {[%emt 0:00:11]} Rd8 {[%emt 0:00:40]} 39. Rd1 {[%emt 0:00:05]} Rb8 $2 {[%emt 0:01:09]} ({Weaker is} 39... Bxa2 40. Ra1 Bc4 41. Rxa3 $11) ({Better is} 39... Ba6 $19 {...Kf6 is the strong threat.} 40. Rd2 Bc4) 40. Ke1 $2 {[%emt 0:00:14][%mdl 8192]} (40. Kd2 $11) 40... Bxa2 $19 {[%emt 0:00:07] [#] Hoping for ...Be6.} 41. Nc1 {[%emt 0:33:03]} Bc4 {[%emt 0:32:36]} 42. Ne2 {[%emt 0:03:15]} Rb2 {[%emt 0:00:37]} 43. Nc3 {[%emt 0:01:31]} Rc2 {[%emt 0:00:06]} 44. Nd5+ {[%emt 0:00:25]} Bxd5 {[%emt 0:00:05] Black mates.} 45. Rxd5 {[%emt 0:01:57]} a2 {[%emt 0:00:04]} 46. Kd1 {[%emt 0:00:05]} Rxg2 {[%emt 0:00:05] Black used his chance.   Weighted Error Value: White=0.67/Black=0.13 (very precise)} ({Inferior is} 46... a1=N 47. Rxg5 Ke6 48. Rf5 $17 (48. Ra5 $2 Rxg2 49. Rf5 Nb3 $19)) 0-1